bitfinex-derivatives/quotes_BNBF0:USTF0_20250315
["timestamp","ask_amount","ask_price","bid_price","bid_amount"]
[1741998789529,0.33858134,590.7,589.66,9.3651785]
[1741998789827,0.31137054,590.69,589.66,9.3651785]
[1741998791226,0.294944,590.68,589.66,9.3651785]
[1741998791528,0.31137163,590.67,589.66,9.3651785]
[1741998794229,0.31137163,590.69,589.66,9.3651785]
[1741998794425,0.2949465,590.66,589.66,9.3651785]
[1741998794629,0.31137163,590.65,589.66,9.3651785]
[1741998795930,0.31137163,590.69,589.66,9.3651785]
[1741998798933,0.31137159,590.68,589.66,9.3651785]
[1741998799129,0.31137159,590.67,589.66,9.3651785]
[1741998799433,0.31137159,590.66,589.66,9.3651785]
[1741998799630,0.31137159,590.69,589.66,9.3651785]
[1741998799831,0.31137159,590.68,589.66,9.3651785]
[1741998800032,0.31137159,590.69,589.66,9.3651785]
[1741998800229,0.31137159,590.68,589.66,9.3651785]
[1741998800431,0.31137159,590.69,589.66,9.3651785]
[1741998813042,0.33858134,590.7,589.66,9.3651785]
[1741998813239,0.31139491,590.69,589.66,9.3651785]
[1741998813745,0.33858134,590.7,589.66,9.3651785]
[1741998813945,0.31139033,590.69,589.66,9.3651785]
[1741998815348,0.2949565,590.68,589.66,9.3651785]
[1741998815949,0.3113996,590.67,589.66,9.3651785]
[1741998818143,0.3113996,590.69,589.66,9.3651785]
[1741998818348,0.294959,590.66,589.66,9.3651785]
[1741998821050,0.33858134,590.7,589.66,9.3651785]
[1741998821250,0.31139817,590.69,589.66,9.3651785]
[1741998821451,0.2949565,590.65,589.66,9.3651785]
[1741998823253,0.31139817,590.64,589.66,9.3651785]
[1741998824253,0.31139817,590.69,589.66,9.3651785]
[1741998824453,0.29496275,590.63,589.66,9.3651785]
[1741998824752,0.31139817,590.62,589.66,9.3651785]
[1741998827247,0.31139817,590.69,589.66,9.3651785]
[1741998827448,0.29496525,590.61,589.66,9.3651785]
[1741998827652,0.31139817,590.6,589.66,9.3651785]
[1741998827848,0.31139817,590.69,589.66,9.3651785]
[1741998828054,0.31139817,590.68,589.66,9.3651785]
[1741998828255,0.31139817,590.69,589.66,9.3651785]
[1741998828553,0.31139817,590.68,589.66,9.3651785]
[1741998828750,0.31139817,590.69,589.66,9.3651785]
[1741998828954,0.31139817,590.68,589.66,9.3651785]
[1741998829154,0.31139817,590.69,589.66,9.3651785]
[1741998829355,0.2949565,590.68,589.66,9.3651785]
[1741998829655,0.31139817,590.67,589.66,9.3651785]
[1741998833353,0.294959,590.66,589.66,9.3651785]
[1741998833554,0.31139817,590.65,589.66,9.3651785]
[1741998836260,0.31139817,590.69,589.66,9.3651785]
[1741998836461,0.2949615,590.64,589.66,9.3651785]
[1741998836662,0.31139682,590.63,589.66,9.3651785]
[1741998839361,0.60636082,590.62,589.66,9.3651785]
[1741998839561,0.31139682,590.61,589.66,9.3651785]
[1741998845173,0.29495275,590.68,589.66,9.3651785]
[1741998845471,0.31139682,590.67,589.66,9.3651785]
[1741998848276,0.31139682,590.69,589.66,9.3651785]
[1741998848480,0.31139682,590.68,589.66,9.3651785]
[1741998848778,0.33858134,590.7,589.66,9.3651785]
[1741998848779,0.31139682,590.67,589.66,9.3651785]
[1741998848983,0.31139682,590.69,589.66,9.3651785]
[1741998849284,0.31135116,590.68,589.66,9.3651785]
[1741998849582,0.31135116,590.67,589.66,9.3651785]
[1741998849782,0.31135116,590.69,589.66,9.3651785]
[1741998849983,0.31135116,590.68,589.66,9.3651785]
[1741998850182,0.31135116,590.69,589.66,9.3651785]
[1741998850883,0.33858134,590.7,589.66,9.3651785]
[1741998851182,0.31134955,590.69,589.66,9.3651785]
[1741998854981,0.31136013,590.68,589.66,9.3651785]
[1741998855181,0.31136013,590.67,589.66,9.3651785]
[1741998855381,0.31136013,590.69,589.66,9.3651785]
[1741998855582,0.31136013,590.68,589.66,9.3651785]
[1741998855784,0.31136013,590.69,589.66,9.3651785]
[1741998855985,0.31136013,590.68,589.66,9.3651785]
[1741998856379,0.31136013,590.67,589.66,9.3651785]
[1741998856584,0.31136013,590.69,589.66,9.3651785]
[1741998861085,0.31136013,590.68,589.66,9.3651785]
[1741998861280,0.2949215,590.74,589.66,9.3651785]
[1741998861281,0.31136013,590.67,589.66,9.3651785]
[1741998861487,0.31136013,590.73,589.66,9.3651785]
[1741998861687,0.31136013,590.72,589.66,9.3651785]
[1741998861885,0.31136013,590.73,589.66,9.3651785]
[1741998862088,0.31136013,590.72,589.66,9.3651785]
[1741998862288,0.31136013,590.73,589.66,9.3651785]
[1741998862484,0.2949215,590.74,589.66,9.3651785]
[1741998862690,0.31134689,590.73,589.66,9.3651785]
[1741998863187,0.31134689,591.17,589.66,9.3651785]
[1741998863382,0.29491151,590.76,589.66,9.3651785]
[1741998863585,0.31134689,590.75,589.66,9.3651785]
[1741998863886,0.31134689,590.74,589.66,9.3651785]
[1741998864082,0.31134689,591.16,589.66,9.3651785]
[1741998864287,0.64967049,591.15,589.66,9.3651785]
[1741998864487,0.64967621,591.14,589.66,9.3651785]
[1741998864682,0.64968194,591.13,589.66,9.3651785]
[1741998864984,0.64968766,591.12,589.66,9.3651785]
[1741998865184,0.64969339,591.11,589.66,9.3651785]
[1741998865482,0.31134689,591.1,589.66,9.3651785]
[1741998866284,0.63322322,591.09,589.66,9.3651785]
[1741998866485,0.64971056,591.08,589.66,9.3651785]
[1741998866684,0.64971628,591.07,589.66,9.3651785]
[1741998866889,0.64972201,591.06,589.66,9.3651785]
[1741998867090,0.64972773,591.05,589.66,9.3651785]
[1741998867290,0.64973346,591.04,589.66,9.3651785]
[1741998867490,0.64973918,591.03,589.66,9.3651785]
[1741998867792,0.64974491,591.02,589.66,9.3651785]
[1741998867994,0.64975065,591.01,589.66,9.3651785]
[1741998868187,0.31134691,591.0,589.66,9.3651785]
[1741998869391,0.29487777,590.99,589.66,9.3651785]
[1741998869590,0.31134691,590.98,589.66,9.3651785]
[1741998871792,0.29487777,590.99,589.66,9.3651785]
[1741998871993,0.31135041,590.98,589.66,9.3651785]
[1741998872190,0.31135041,591.0,589.66,9.3651785]
[1741998872394,0.29487777,590.98,589.66,9.3651785]
[1741998872595,0.31135041,590.97,589.66,9.3651785]
[1741998875197,0.31135041,591.0,589.66,9.3651785]
[1741998875497,0.29488152,590.96,589.66,9.3651785]
[1741998875698,0.31135212,590.95,589.66,9.3651785]
[1741998878298,0.31135212,591.0,589.66,9.3651785]
[1741998878599,0.29488652,590.94,589.66,9.3651785]
[1741998878798,0.31135212,590.93,589.66,9.3651785]
[1741998881299,0.29488901,590.92,589.66,9.3651785]
[1741998881701,0.31135212,590.91,589.66,9.3651785]
[1741998884400,0.60624363,590.9,589.66,9.3651785]
[1741998884600,0.31135212,590.89,589.66,9.3651785]
[1741998884998,0.29489151,590.9,589.66,9.3651785]
[1741998885195,0.31134983,590.89,589.66,9.3651785]
[1741998886896,0.29489151,590.9,589.66,9.3651785]
[1741998887099,0.31134855,590.89,589.66,9.3651785]
[1741998887301,0.29489401,590.88,589.66,9.3651785]
[1741998887702,0.31134855,590.87,589.66,9.3651785]
[1741998890397,0.33840947,591.0,589.66,9.3651785]
[1741998890398,0.60624256,590.86,589.66,9.3651785]
[1741998890601,0.31134855,590.85,589.66,9.3651785]
[1741998893307,0.33840947,591.0,589.66,9.3651785]
[1741998893308,0.29489651,590.84,589.66,9.3651785]
[1741998893711,0.31134855,590.83,589.66,9.3651785]
[1741998896210,0.31134855,590.99,589.66,9.3651785]
[1741998896405,0.31134855,590.98,589.66,9.3651785]
[1741998896705,0.31134855,590.97,589.66,9.3651785]
[1741998896911,0.31134855,590.96,589.66,9.3651785]
[1741998897110,0.31134855,590.95,589.66,9.3651785]
[1741998897410,0.31134855,590.94,589.66,9.3651785]
[1741998897603,0.31134855,590.93,589.66,9.3651785]
[1741998897808,0.31134855,590.99,589.66,9.3651785]
[1741998899208,0.29487902,590.98,589.66,9.3651785]
[1741998899415,0.31134855,590.97,589.66,9.3651785]
[1741998899809,0.29487902,590.98,589.66,9.3651785]
[1741998900010,0.31134354,590.97,589.66,9.3651785]
[1741998902213,0.31134354,590.99,589.66,9.3651785]
[1741998902413,0.29487902,590.96,589.66,9.3651785]
[1741998902610,0.31134354,590.95,589.66,9.3651785]
[1741998905318,0.60622256,590.94,589.66,9.3651785]
[1741998905518,0.31134354,590.93,589.66,9.3651785]
[1741998906118,0.31134354,590.93,589.67,0.30679301]
[1741998906318,0.31134354,590.93,589.66,9.3651785]
[1741998906319,0.31134354,590.93,589.69,0.33916125]
[1741998907119,0.31126867,590.92,589.69,0.33916125]
[1741998907421,0.31126867,590.91,589.69,0.33916125]
[1741998907615,0.29487902,590.94,589.69,0.33916125]
[1741998908117,0.31125484,590.93,589.69,0.33916125]
[1741998908317,0.29487902,590.94,589.69,0.33916125]
[1741998908522,0.31125892,590.93,589.69,0.33916125]
[1741998908817,0.31125892,590.93,589.7,0.988]
[1741998909123,0.31125892,590.93,589.71,0.33914975]
[1741998909522,0.31125892,590.93,589.72,1.894]
[1741998909718,0.31125892,590.93,589.73,0.33913824]
[1741998909921,0.31125892,590.93,589.73,1.74513824]
[1741998910115,0.31125892,590.93,589.74,1.025]
[1741998910325,0.3112574,590.92,589.74,1.494]
[1741998910521,0.3112574,590.91,589.74,1.494]
[1741998910722,0.3112574,590.9,589.75,0.33912674]
[1741998910917,0.3112574,590.89,589.76,0.30680018]
[1741998911123,0.3112574,590.88,589.77,0.33911524]
[1741998911318,0.3112574,590.87,589.78,0.30680018]
[1741998911518,0.3112574,590.87,589.79,0.33910374]
[1741998911719,0.3112574,590.86,589.79,0.33910374]
[1741998911918,0.2948353,590.89,589.79,0.33910374]
[1741998912121,0.31126198,590.88,589.79,0.33910374]
[1741998912322,0.31126198,590.88,589.8,0.30680238]
[1741998913222,0.31126198,590.88,589.81,0.33909225]
[1741998913722,0.31126316,590.87,589.81,0.33909225]
[1741998913926,0.31126316,590.86,589.81,0.33909225]
[1741998914119,0.33840947,591.0,589.81,0.33909225]
[1741998914120,0.31126316,590.88,589.81,0.33909225]
[1741998914320,0.31126316,590.87,589.81,0.33909225]
[1741998914521,0.29484279,590.89,589.81,0.33909225]
[1741998914728,0.31126316,590.88,589.81,0.33909225]
[1741998916536,0.31126316,590.88,589.82,0.30677139]
[1741998916733,0.31126316,590.88,589.83,0.33908075]
[1741998917330,0.2948328,590.89,589.83,0.33908075]
[1741998917532,0.31126316,590.88,589.83,0.33908075]
[1741998919333,0.2948328,590.89,589.83,0.33908075]
[1741998919538,0.31126509,590.88,589.83,0.33908075]
[1741998920438,0.31126509,590.87,589.83,0.33908075]
[1741998920638,0.31126509,590.88,589.83,0.33908075]
[1741998920838,0.31126509,590.87,589.83,0.33908075]
[1741998921038,0.31126509,590.88,589.83,0.33908075]
[1741998921239,0.31126509,590.87,589.83,0.33908075]
[1741998921439,0.31126509,590.88,589.83,0.33908075]
[1741998921634,0.29484279,590.89,589.83,0.33908075]
[1741998921635,0.31126509,590.87,589.83,0.33908075]
[1741998921940,0.31126509,590.86,589.83,0.33908075]
[1741998922140,0.31126509,590.88,589.83,0.33908075]
[1741998922342,0.31126509,590.87,589.83,0.33908075]
[1741998922542,0.31126509,590.86,589.83,0.33908075]
[1741998922837,0.31126509,590.85,589.83,0.33908075]
[1741998923047,0.31125867,590.84,589.83,0.33908075]
[1741998923242,0.31125867,590.99,589.83,0.33908075]
[1741998923544,0.29482905,590.89,589.83,0.33908075]
[1741998923740,0.31125867,590.88,589.83,0.33908075]
[1741998923941,0.31125867,590.87,589.84,0.729]
[1741998924144,0.31125867,590.99,589.85,0.33906925]
[1741998924342,0.31125867,590.98,589.85,0.33906925]
[1741998924541,0.31125867,590.99,589.85,0.33906925]
[1741998924739,0.31125867,590.98,589.85,0.33906925]
[1741998924944,0.31125867,590.97,589.86,0.825]
[1741998925143,0.29481657,590.98,589.87,0.33905775]
[1741998925341,0.31125867,590.97,589.88,0.724]
[1741998926345,0.60607274,590.96,589.88,0.724]
[1741998926541,0.29481407,590.96,589.88,0.724]
[1741998926747,0.3112552,590.95,589.88,0.724]
[1741998928947,0.29481407,590.96,589.88,0.724]
[1741998929147,0.31125974,590.95,589.88,0.724]
[1741998929343,0.31125974,590.94,589.88,0.724]
[1741998929544,0.31125974,590.94,589.89,0.634]
[1741998930440,0.31125974,590.94,589.9,0.468]
[1741998932251,0.31125974,590.99,589.9,0.468]
[1741998932550,0.29481032,590.93,589.9,0.468]
[1741998933952,0.29481032,590.93,589.9,1.168]
[1741998935051,0.33840947,591.0,589.9,1.168]
[1741998935252,0.3112563,590.99,589.9,1.168]
[1741998935754,0.3112563,590.99,589.9,2.231]
[1741998936351,0.33840947,591.0,589.9,2.231]
[1741998936553,0.31125905,590.99,589.9,2.231]
[1741998937052,0.60597575,590.99,589.9,2.231]
[1741998937245,0.31125905,590.98,589.9,2.231]
[1741998938351,0.29480782,590.97,589.9,2.231]
[1741998939553,0.29480782,590.97,589.9,3.03]
[1741998941055,0.33840947,591.0,589.9,3.03]
[1741998941255,0.31125514,590.99,589.9,3.03]
[1741998941450,0.29480658,590.96,589.9,3.03]
[1741998942655,0.31125524,590.95,589.9,3.03]
[1741998943251,0.29480658,590.96,589.9,3.03]
[1741998943454,0.31125524,590.95,589.9,3.03]
[1741998944357,0.31125524,590.99,589.9,3.03]
[1741998944657,0.29481157,590.94,589.9,3.03]
[1741998944858,0.31125524,590.93,589.9,3.03]
[1741998945256,0.29481157,590.94,589.9,3.03]
[1741998945458,0.31125709,590.93,589.9,3.03]
[1741998946260,0.31125709,590.93,589.9,3.846]
[1741998946960,0.31125709,590.93,589.9,4.736]
[1741998947161,0.31125709,590.93,589.9,5.619]
[1741998947358,0.60607116,590.92,589.9,5.619]
[1741998947658,0.31125709,590.91,589.9,5.619]
[1741998948264,0.31125709,590.91,589.9,6.298]
[1741998950768,0.31125709,590.91,589.9,7.41]
[1741998951467,0.31125769,590.9,589.9,7.41]
[1741998951666,0.31125769,590.91,589.9,7.41]
[1741998951867,0.31125769,590.9,589.9,7.41]
[1741998952066,0.31125769,590.91,589.9,7.41]
[1741998952264,0.29481407,590.92,589.9,7.41]
[1741998952265,0.31125769,590.9,589.9,7.41]
[1741998952468,0.31125769,590.91,589.9,7.41]
[1741998952669,0.31125769,590.9,589.9,7.41]
[1741998952869,0.31125769,590.91,589.9,7.41]
[1741998953070,0.31125769,590.91,589.9,7.74904051]
[1741998953268,3.31066976,591.3,589.92,0.33902902]
[1741998953269,0.31125769,590.99,589.92,0.33902902]
[1741998953563,2.59344213,591.35,589.93,0.30579803]
[1741998953769,0.31108857,591.34,589.95,0.33901178]
[1741998954068,2.59344213,591.35,589.96,0.30573554]
[1741998954269,2.59344213,591.35,589.98,0.33899454]
[1741998954470,0.29462936,591.42,589.99,0.30573554]
[1741998954763,0.31101016,591.41,590.01,0.3389773]
[1741998955369,0.31101016,591.41,590.02,0.30557096]
[1741998955569,0.29462936,591.42,590.04,0.33896007]
[1741998955765,0.29462936,591.42,590.05,0.30557096]
[1741998955972,0.29462936,591.42,590.07,0.33894283]
[1741998956166,2.59344213,592.22,590.07,0.33894283]
[1741998956167,0.31099791,591.41,590.08,0.30557096]
[1741998956371,0.29450843,591.42,590.1,0.3389256]
[1741998956572,0.31099655,591.41,590.11,0.30551283]
[1741998956767,0.31099655,591.41,590.13,0.33890837]
[1741998956973,0.31099655,591.41,590.14,0.30551283]
[1741998957273,0.31099655,591.41,590.16,0.33889114]
[1741998957472,0.31099655,591.41,590.17,0.30551283]
[1741998957674,0.31099655,591.41,590.19,0.33887392]
[1741998957868,0.31099655,591.41,590.2,0.30551283]
[1741998958274,0.29450843,591.42,590.19,0.33887392]
[1741998958476,0.29450843,591.42,590.2,0.30542473]
[1741998958477,0.31098144,591.41,590.2,0.30542473]
[1741998958971,0.31098144,591.41,590.21,0.33886243]
[1741998959172,0.31098144,591.41,590.22,0.97342473]
[1741998959369,0.29458946,591.42,590.23,0.33885095]
[1741998959771,2.29931261,592.37,590.23,0.33885095]
[1741998960077,0.33768382,592.27,590.24,0.30523262]
[1741998960375,0.31092059,592.26,590.23,0.33885095]
[1741998960571,0.33770093,592.24,590.26,0.33883373]
[1741998960769,0.31092059,592.23,590.26,0.33883373]
[1741998960971,0.33771803,592.21,590.26,0.33883373]
[1741998961173,0.31092059,592.2,590.26,0.33883373]
[1741998961369,0.31092059,592.19,590.27,0.30511636]
[1741998961571,0.31092059,592.18,590.27,0.30511636]
[1741998961775,0.33774655,592.16,590.29,0.33881651]
[1741998961975,0.31092059,592.15,590.3,0.30511636]
[1741998962171,0.33776366,592.13,590.32,0.33879929]
[1741998962372,0.31092059,592.12,590.32,0.33879929]
[1741998962571,0.33778078,592.1,590.33,0.30510513]
[1741998962779,0.31092059,592.09,590.35,0.33878207]
[1741998963080,0.64871278,592.08,590.36,0.30510513]
[1741998963277,0.3378036,592.06,590.38,0.33876486]
[1741998963674,0.31092059,592.05,590.39,0.30508473]
[1741998963877,0.31092059,592.04,590.41,0.33874764]
[1741998964072,0.31092059,592.03,590.42,0.30508473]
[1741998964275,0.64874701,592.02,590.44,0.33873043]
[1741998964473,0.64875272,592.01,590.45,0.30508473]
[1741998964679,0.64875842,592.0,590.46,0.33871896]
[1741998964978,0.64876413,591.99,590.47,0.30508473]
[1741998965179,0.33784354,591.99,590.48,0.33870749]
[1741998965379,0.31087733,591.98,590.49,0.30498547]
[1741998965679,0.64873228,591.97,590.5,0.33869602]
[1741998965977,0.64873799,591.96,590.5,0.33869602]
[1741998966178,0.6487437,591.95,590.5,0.33869602]
[1741998966477,0.64874941,591.94,590.5,0.33869602]
[1741998966676,0.64875511,591.93,590.5,0.33869602]
[1741998966873,0.31087733,591.92,590.5,0.33869602]
[1741998967271,0.31087733,591.92,590.51,0.856]
[1741998967875,0.31087733,591.92,590.52,0.33868454]
[1741998968476,0.29442994,591.91,590.52,0.33868454]
[1741998968776,0.31087733,591.9,590.52,0.33868454]
[1741998968979,0.29442994,591.91,590.52,0.33868454]
[1741998969279,0.31086587,591.9,590.52,0.33868454]
[1741998970573,0.31086587,591.9,590.52,1.17168454]
[1741998971376,0.29442621,591.89,590.52,1.17168454]
[1741998971573,0.31086587,591.88,590.52,1.17168454]
[1741998972387,0.29442621,591.89,590.52,1.17168454]
[1741998974085,0.33787778,591.93,590.52,1.17168454]
[1741998974285,0.29441375,591.88,590.52,1.17168454]
[1741998975696,0.31083456,591.87,590.52,1.17168454]
[1741998976295,0.29441375,591.88,590.52,1.17168454]
[1741998977096,0.33787778,591.93,590.52,1.17168454]
[1741998977293,0.31080838,591.92,590.52,1.17168454]
[1741998977493,0.2944013,591.87,590.52,1.17168454]
[1741998979299,0.2944013,591.87,590.52,1.88868454]
[1741998979594,0.31087238,591.86,590.52,1.88868454]
[1741998979797,0.31087238,591.86,590.52,2.79268454]
[1741998981996,0.2944013,591.87,590.52,2.79268454]
[1741998982197,0.31088385,591.86,590.52,2.79268454]
[1741998983198,0.31088385,591.92,590.52,2.79268454]
[1741998983395,0.64877305,591.91,590.52,2.79268454]
[1741998983594,0.64877876,591.9,590.52,2.79268454]
[1741998983800,0.64878447,591.89,590.52,2.79268454]
[1741998984003,0.64879018,591.88,590.52,2.79268454]
[1741998984300,0.64879589,591.87,590.52,2.79268454]
[1741998984501,0.31088385,591.86,590.52,2.79268454]
[1741998985202,0.31088385,591.86,590.52,3.64768454]
[1741998986302,0.31088385,591.86,590.52,4.80568454]
[1741998987797,0.31088385,591.86,590.52,5.50368454]
[1741998989004,0.31088385,591.86,590.52,5.97168454]
[1741998989203,0.31088385,591.86,590.52,6.83868454]
[1741998989401,0.63237209,591.85,590.52,6.83868454]
[1741998989602,0.64881302,591.84,590.52,6.83868454]
[1741998989903,0.64881872,591.83,590.52,6.83868454]
[1741998990103,0.31088385,591.82,590.52,7.97068454]
[1741998992505,0.29443617,591.81,590.52,7.97068454]
[1741998992704,0.31088385,591.8,590.52,7.97068454]
[1741998993107,0.29443617,591.81,590.52,7.97068454]
[1741998993307,0.31085721,591.8,590.52,7.97068454]
[1741998994909,0.31085721,591.8,590.52,8.96668454]
[1741998995305,0.31085721,591.82,590.52,8.96668454]
[1741998995508,0.29441873,591.79,590.52,8.96668454]
[1741998995704,0.31085721,591.78,590.52,8.96668454]
[1741998996908,0.29441873,591.79,590.52,8.96668454]
[1741998997109,0.31080716,591.78,590.53,0.30468037]
[1741998997310,0.31080716,591.78,590.55,0.33866734]
[1741998997503,0.31080716,591.78,590.56,0.30468037]
[1741998997707,0.31080716,591.78,590.58,0.33865014]
[1741998998005,0.31080716,591.78,590.59,0.30468037]
[1741998998209,0.31080716,591.82,590.61,0.33863293]
[1741998998406,0.31080716,591.81,590.61,0.33863293]
[1741998998610,0.29439134,591.86,590.61,0.33863293]
[1741998998611,0.31080716,591.85,590.61,0.33863293]
[1741998998810,0.31080716,591.84,590.61,0.33863293]
[1741998999106,0.31080716,591.83,590.61,0.33863293]
[1741998999316,0.31080716,591.85,590.62,0.30466974]
[1741998999708,0.31080716,591.85,590.61,0.33863293]
[1741998999906,0.31080716,591.85,590.63,0.775]
[1741999000212,0.31080716,591.85,590.64,0.96361573]
[1741999000405,0.31080716,591.85,590.65,0.33861]
[1741999001312,0.60518729,591.84,590.65,0.33861]
[1741999001505,0.31080716,591.83,590.65,0.33861]
[1741999002311,0.29438013,591.84,590.65,0.33861]
[1741999002505,0.310802,591.83,590.65,0.33861]
[1741999004313,0.29438262,591.82,590.65,0.33861]
[1741999004711,0.310802,591.81,590.65,1.01261]
[1741999007217,0.31084761,591.8,590.65,1.01261]
[1741999007416,0.31084761,591.79,590.65,1.01261]
[1741999007617,0.31084761,591.78,590.65,1.01261]
[1741999007813,0.31084761,591.77,590.65,1.01261]
[1741999008017,2.59344213,592.26,590.65,1.01261]
[1741999008213,0.31084702,592.25,590.65,1.01261]
[1741999008412,0.33770663,592.23,590.65,1.01261]
[1741999008716,0.31084702,592.22,590.65,1.01261]
[1741999009017,0.33772374,592.2,590.65,1.01261]
[1741999009219,2.59344213,592.08,590.65,1.01261]
[1741999009518,0.31084702,592.07,590.65,1.01261]
[1741999009716,0.3378036,592.06,590.65,1.93761]
[1741999009918,0.31084739,592.05,590.65,1.93761]
[1741999010112,0.6486624,592.04,590.65,1.93761]
[1741999010316,0.33782071,592.03,590.65,1.93761]
[1741999010516,0.31084739,592.02,590.65,1.93761]
[1741999010817,0.64867952,592.01,590.65,1.93761]
[1741999011018,0.64868522,592.0,590.65,1.93761]
[1741999011317,0.31084739,591.99,590.65,1.93761]
[1741999012418,0.33784925,591.98,590.65,2.68861]
[1741999012614,0.31084739,591.97,590.65,3.58861]
[1741999012817,0.33786066,591.96,590.65,3.58861]
[1741999013120,0.31084739,591.95,590.65,3.58861]
[1741999013318,0.60521009,591.95,590.65,4.34461]
[1741999013514,0.31084739,591.94,590.65,4.34461]
[1741999015022,0.31084739,591.94,590.65,5.11561]
[1741999015319,0.2943627,591.95,590.65,5.11561]
[1741999015519,0.31079908,591.94,590.65,5.11561]
[1741999016320,0.31079908,591.93,590.65,5.11561]
[1741999016521,0.29436519,591.93,590.65,5.11561]
[1741999016722,0.31079908,591.92,590.65,5.11561]
[1741999017516,0.31079908,591.92,590.65,6.19061]
[1741999017715,0.31079908,591.92,590.65,6.65861]
[1741999017916,0.31079918,591.91,590.65,6.65861]
[1741999018116,0.31079918,591.92,590.65,6.65861]
[1741999018320,0.31079918,591.91,590.65,6.65861]
[1741999018521,0.31079918,591.92,590.65,6.65861]
[1741999018720,0.31079918,591.91,590.65,6.65861]
[1741999018918,0.31079918,591.92,590.65,6.65861]
[1741999019117,0.31079918,591.9,590.65,6.65861]
[1741999019317,0.31079918,591.89,590.65,6.65861]
[1741999019522,0.31079918,591.88,590.65,6.65861]
[1741999019723,0.31079918,591.9,590.65,6.65861]
[1741999019921,0.31079918,591.89,590.65,6.65861]
[1741999020121,0.31079918,591.9,590.65,6.65861]
[1741999020318,0.31079918,591.89,590.65,6.65861]
[1741999020520,0.31079918,591.9,590.65,6.65861]
[1741999020723,0.31079918,591.89,590.65,6.65861]
[1741999021025,0.31079918,591.88,590.65,6.65861]
[1741999021220,0.31079918,591.9,590.65,6.65861]
[1741999021419,0.31079918,591.89,590.65,6.65861]
[1741999021622,0.31079918,591.88,590.65,6.65861]
[1741999021822,0.31079918,591.9,590.65,6.65861]
[1741999022124,0.31079918,591.89,590.65,6.65861]
[1741999022324,0.31079918,591.95,590.65,6.65861]
[1741999022524,0.29437017,591.89,590.65,6.65861]
[1741999022724,0.31079918,591.88,590.65,6.65861]
[1741999024627,0.29437017,591.89,590.65,6.65861]
[1741999024822,0.31085098,591.88,590.65,6.65861]
[1741999025321,0.31085098,591.87,590.65,6.65861]
[1741999025523,0.31085098,591.86,590.65,6.65861]
[1741999028327,0.60524854,591.85,590.65,6.65861]
[1741999028626,0.31085098,591.84,590.65,6.65861]
[1741999029929,0.31085098,591.84,590.65,7.41561]
[1741999031529,0.31085098,591.95,590.65,7.41561]
[1741999031725,0.31085098,591.94,590.65,7.41561]
[1741999031930,0.31085098,591.95,590.65,7.41561]
[1741999032124,0.31085098,591.94,590.65,7.41561]
[1741999032326,0.31085098,591.95,590.65,7.41561]
[1741999032529,0.31085098,591.94,590.65,7.41561]
[1741999032730,0.31085098,591.95,590.65,7.41561]
[1741999032928,0.31085098,591.94,590.65,7.41561]
[1741999033226,0.31085098,591.93,590.65,7.41561]
[1741999033433,0.31085098,591.94,590.65,7.41561]
[1741999033634,0.31085098,591.93,590.65,7.41561]
[1741999033833,0.31085098,591.94,590.65,7.41561]
[1741999034034,0.31085098,591.93,590.65,7.41561]
[1741999034333,0.31085098,591.92,590.65,7.41561]
[1741999034529,0.31085098,591.91,590.65,7.41561]
[1741999034732,0.2943876,591.93,590.65,7.41561]
[1741999034733,0.31085098,591.9,590.65,7.41561]
[1741999034934,0.31085098,591.89,590.65,7.41561]
[1741999035133,0.2943876,591.93,590.65,7.41561]
[1741999035134,0.31085098,591.92,590.65,7.41561]
[1741999035428,0.31085098,591.91,590.65,7.41561]
[1741999035634,0.31085098,591.9,590.65,7.41561]
[1741999035835,0.31085098,591.89,590.65,7.41561]
[1741999036035,0.31085098,591.88,590.65,7.41561]
[1741999036235,0.31085098,591.87,590.65,7.41561]
[1741999036436,0.31085098,591.92,590.65,7.41561]
[1741999036635,0.31085098,591.91,590.65,7.41561]
[1741999036837,0.31085098,591.92,590.65,7.41561]
[1741999037030,0.2943876,591.93,590.65,7.41561]
[1741999037231,0.31082761,591.92,590.65,7.41561]
[1741999037431,0.31082761,591.91,590.65,7.41561]
[1741999037631,0.31082761,591.9,590.65,7.41561]
[1741999037832,0.31082761,591.95,590.65,7.41561]
[1741999040241,0.29438636,591.94,590.65,7.41561]
[1741999040441,0.31082761,591.93,590.65,7.41561]
[1741999046451,0.31082761,591.92,590.65,7.41561]
[1741999046642,0.2943515,591.92,590.65,7.41561]
[1741999046842,0.31082761,591.91,590.65,7.41561]
[1741999049448,0.31082761,591.95,590.65,7.41561]
[1741999049648,0.31082761,591.94,590.65,7.41561]
[1741999049841,0.31082761,591.95,590.65,7.41561]
[1741999051346,0.29434901,591.94,590.65,7.41561]
[1741999051550,0.31082761,591.93,590.65,7.41561]
[1741999052545,0.60517911,591.92,590.65,7.41561]
[1741999052749,0.31082761,591.91,590.65,7.41561]